[Event "Dutch Open-ch 2019"]
[Site "Dieren"]
[Date "2019.07.29"]
[Round "6.2"]
[White "Van Foreest, Lucas"]
[Black "David, Alberto"]
[Result "1-0"]
[ECO "B06"]
[WhiteElo "2521"]
[BlackElo "2553"]
[Annotator "ChessBase"]
[PlyCount "61"]
[EventDate "2019.07.23"]
[EventType "swiss"]
[EventCountry "NED"]
[SourceTitle "playchess.com"]
[Source "ChessBase"]
[SourceQuality "1"]
[TimeControl "40/5400+30:1800+30"]

1. e4 {[%emt 0:03:48]} g6 {[%emt 0:00:00]} 2. d4 {[%emt 0:00:18]} Bg7 {[%emt 0:00:00]} 3. Nc3 {[%emt 0:00:06]} a6 {[%emt 0:00:02]} 4. Nf3 {[%emt 0:00:11]} d6 {[%emt 0:01:25]} 5. Qe2 {[%emt 0:00:04]} Bg4 {[%emt 0:41:02]} 6. Be3 {[%emt 0:00:10]} c5 {[%emt 0:01:25]} 7. dxc5 {[%emt 0:03:32]} Nc6 {[%emt 0:09:50]} 8. O-O-O {[%emt 0:14:54]} Bxc3 {[%emt 0:02:54]} 9. bxc3 {[%emt 0:00:14]} Qa5 {[%emt 0:00:09]} 10. cxd6 {[%emt 0:19:31]} Qa3+ {[%emt 0:11:54]} 11. Kb1 {[%emt 0:00:11]} Be6 {[%emt 0:00:05]} 12. d7+ {[%emt 0:00:09]} Kf8 {[%emt 0:00:49]} 13. Rd5 {[%emt 0:00:06]} Nf6 {[%emt 0:00:14]} 14. Bh6+ {[%emt 0:09:34]} Kg8 {[%emt 0:00:04]} 15. Qc4 {[%emt 0:00:04]} Bxd5 {[%emt 0:06:29]} 16. exd5 {[%emt 0:00:06]} Na7 {[%emt 0:00:04]} 17. Bd3 {[%emt 0:09:16]} Rd8 {[%emt 0:05:29]} 18. Re1 {[%emt 0:02:57]} Nb5 {[%emt 0:01:55]} 19. Ka1 {[%emt 0:04:18]} Nxd7 {[%emt 0:07:09]} 20. Qb3 {[%emt 0:00:09]} Qd6 {[%emt 0:01:31]} 21. c4 {[%emt 0:01:08]} Nc7 {[%emt 0:02:53]} 22. Qb2 {[%emt 0:00:07]} f6 {[%emt 0:02:41]} 23. Qd4 {[%emt 0:07:25]} Nc5 {[%emt 0:00:04]} 24. Qg4 {[%emt 0:04:08]} Kf7 {[%emt 0:00:51]} 25. Bf4 {[%emt 0:04:22]} Qd7 {[%emt 0:00:11]} 26. Qh4 {[%emt 0:00:01]} Nxd3 {[%emt 0:01:57]} 27. cxd3 {[%emt 0:00:01]} Nxd5 {[%emt 0:01:12]} 28. cxd5 {[%emt 0:00:18]} Qxd5 {[%emt 0:00:06]} 29. Bc1 {[%emt 0:05:05]} Rd7 {[%emt 0:00:18]} 30. Bb2 {[%emt 0:00:02]} b5 {[%emt 0:01:33]} 31. Rxe7+ {[%emt 0:00:23]} 1-0

[Event "Dutch Open-ch 2019"]
[Site "Dieren"]
[Date "2019.07.29"]
[Round "6.3"]
[White "Pruijssers, Roeland"]
[Black "Buckels, Valentin"]
[Result "1/2-1/2"]
[ECO "B06"]
[WhiteElo "2534"]
[BlackElo "2451"]
[Annotator "ChessBase"]
[PlyCount "74"]
[EventDate "2019.07.23"]
[EventType "swiss"]
[EventCountry "NED"]
[SourceTitle "playchess.com"]
[Source "ChessBase"]
[SourceQuality "1"]
[TimeControl "40/5400+30:1800+30"]

1. e4 {[%emt 0:00:00]} e5 {[%emt 0:00:00]} 2. Nf3 {[%emt 0:00:00]} Nc6 {[%emt 0:00:00]} 3. Bc4 {[%emt 0:00:00]} g6 {[%emt 0:01:32]} 4. O-O {[%emt 0:02:30]} Bg7 {[%emt 0:01:02]} 5. c3 {[%emt 0:00:10]} Nf6 {[%emt 0:02:55]} 6. d4 {[%emt 0:10:03]} d6 {[%emt 0:01:35]} 7. Re1 {[%emt 0:11:15]} O-O {[%emt 0:00:54]} 8. Nbd2 {[%emt 0:01:30]} h6 {[%emt 0:05:44]} 9. h3 {[%emt 0:05:45]} exd4 {[%emt 0:07:32]} 10. cxd4 {[%emt 0:00:08]} d5 {[%emt 0:00:35]} 11. exd5 {[%emt 0:00:43]} Nxd5 {[%emt 0:00:55]} 12. Ne4 {[%emt 0:00:11]} Kh7 {[%emt 0:09:34]} 13. Bxd5 {[%emt 0:15:08]} Qxd5 {[%emt 0:00:12]} 14. Nc3 {[%emt 0:00:11]} Qd8 {[%emt 0:01:25]} 15. d5 {[%emt 0:00:27]} Ne7 {[%emt 0:07:14]} 16. Qb3 {[%emt 0:00:50]} c6 {[%emt 0:03:00]} 17. dxc6 {[%emt 0:15:38]} bxc6 {[%emt 0:04:08]} 18. Bf4 {[%emt 0:06:38]} Be6 {[%emt 0:01:09]} 19. Qa3 {[%emt 0:00:23]} Nd5 {[%emt 0:01:52]} 20. Be5 {[%emt 0:02:21]} Bxe5 {[%emt 0:02:43]} 21. Rxe5 {[%emt 0:00:44]} Nf4 {[%emt 0:03:41]} 22. Rd1 {[%emt 0:02:25]} Qf6 {[%emt 0:10:03]} 23. Ne4 {[%emt 0:01:31]} Qg7 {[%emt 0:00:06]} 24. Qe3 {[%emt 0:08:58]} Nd5 {[%emt 0:00:34]} 25. Qc5 {[%emt 0:00:07]} Rfd8 {[%emt 0:01:42]} 26. b3 {[%emt 0:01:06]} Nf4 {[%emt 0:06:18]} 27. Rxd8 {[%emt 0:00:51]} Rxd8 {[%emt 0:00:06]} 28. Qe7 {[%emt 0:00:24]} Qf8 {[%emt 0:05:59]} 29. Qh4 {[%emt 0:00:21]} Nh5 {[%emt 0:06:46]} 30. Ra5 {[%emt 0:02:06]} Rd1+ {[%emt 0:02:29]} 31. Kh2 {[%emt 0:00:02]} Bd5 {[%emt 0:01:48]} 32. g3 {[%emt 0:03:23]} Qe8 {[%emt 0:05:55]} 33. Ra4 {[%emt 0:02:23]} Kg8 {[%emt 0:07:02]} 34. Kg2 {[%emt 0:08:48]} f5 {[%emt 0:00:30]} 35. Nc3 {[%emt 0:00:30]} Bxf3+ {[%emt 0:00:30]} 36. Kxf3 {[%emt 0:00:30]} Rd3+ {[%emt 0:00:30]} 37. Kg2 Rxc3 {[%emt 0:00:30]} 1/2-1/2

[Event "Dutch Open-ch 2019"]
[Site "Dieren"]
[Date "2019.07.29"]
[Round "6.4"]
[White "Odendahl, Reiner"]
[Black "Ikonnikov, Vyacheslav"]
[Result "0-1"]
[ECO "A37"]
[WhiteElo "2352"]
[BlackElo "2499"]
[Annotator "ChessBase"]
[PlyCount "72"]
[EventDate "2019.07.23"]
[EventType "swiss"]
[EventCountry "NED"]
[SourceTitle "playchess.com"]
[Source "ChessBase"]
[SourceQuality "1"]
[TimeControl "40/5400+30:1800+30"]

1. c4 {[%emt 0:00:00]} c5 {[%emt 0:00:03]} 2. g3 {[%emt 0:00:00]} g6 {[%emt 0:00:51]} 3. Bg2 {[%emt 0:00:16]} Bg7 {[%emt 0:00:05]} 4. Nf3 {[%emt 0:00:17]} Nc6 {[%emt 0:00:30]} 5. O-O {[%emt 0:00:14]} d6 {[%emt 0:00:51]} 6. Nc3 {[%emt 0:00:13]} e6 {[%emt 0:00:54]} 7. d3 {[%emt 0:08:58]} Nge7 {[%emt 0:00:51]} 8. Rb1 {[%emt 0:01:03]} O-O {[%emt 0:02:33]} 9. Bd2 {[%emt 0:01:43]} b6 {[%emt 0:06:30]} 10. a3 {[%emt 0:00:49]} Bb7 {[%emt 0:01:37]} 11. b4 {[%emt 0:01:45]} Qd7 {[%emt 0:00:51]} 12. Qa4 {[%emt 0:08:16]} h6 {[%emt 0:08:46]} 13. Rfc1 {[%emt 0:06:31]} g5 {[%emt 0:03:17]} 14. e3 {[%emt 0:12:31]} Rfd8 {[%emt 0:11:10]} 15. h4 {[%emt 0:08:08]} g4 {[%emt 0:01:19]} 16. Ne1 {[%emt 0:00:12]} Ng6 {[%emt 0:01:06]} 17. Qd1 {[%emt 0:03:07]} f5 {[%emt 0:01:42]} 18. Qe2 {[%emt 0:04:03]} Rf8 {[%emt 0:03:16]} 19. Qf1 {[%emt 0:02:19]} Rac8 {[%emt 0:04:37]} 20. Nb5 {[%emt 0:02:17]} Ba8 {[%emt 0:00:30]} 21. Bc3 {[%emt 0:07:08]} e5 {[%emt 0:01:25]} 22. bxc5 {[%emt 0:00:37]} dxc5 {[%emt 0:05:52]} 23. Ba1 {[%emt 0:02:25]} f4 {[%emt 0:00:09]} 24. Bd5+ {[%emt 0:01:13]} Kh8 {[%emt 0:00:33]} 25. Qe2 {[%emt 0:02:20]} f3 {[%emt 0:04:32]} 26. Qc2 {[%emt 0:01:50]} Nge7 {[%emt 0:07:23]} 27. Be4 {[%emt 0:01:27]} Nf5 {[%emt 0:00:21]} 28. Bxf5 {[%emt 0:05:22]} Rxf5 {[%emt 0:00:09]} 29. Nc3 {[%emt 0:00:24]} Rf7 {[%emt 0:01:46]} 30. Ne4 {[%emt 0:02:56]} Ne7 {[%emt 0:00:40]} 31. Rd1 {[%emt 0:04:23]} Nf5 {[%emt 0:00:46]} 32. Qb3 {[%emt 0:05:57]} Rcf8 {[%emt 0:06:30]} 33. Nc2 {[%emt 0:00:48]} Nxh4 {[%emt 0:01:16]} 34. gxh4 {[%emt 0:01:18]} g3 {[%emt 0:00:12]} 35. Nxg3 {[%emt 0:02:57]} Qh3 {[%emt 0:00:13]} 36. Ne1 {[%emt 0:00:13]} Qxg3+ {[%emt 0:00:13]} 0-1

[Event "Dutch Open-ch 2019"]
[Site "Dieren"]
[Date "2019.07.29"]
[Round "6.5"]
[White "Reinderman, Dimitri"]
[Black "Das, Arghyadip"]
[Result "1/2-1/2"]
[ECO "A30"]
[WhiteElo "2583"]
[BlackElo "2439"]
[Annotator "ChessBase"]
[PlyCount "144"]
[EventDate "2019.07.23"]
[EventType "swiss"]
[EventCountry "NED"]
[SourceTitle "playchess.com"]
[Source "ChessBase"]
[SourceQuality "1"]
[TimeControl "40/5400+30:1800+30"]

1. c4 {[%emt 0:00:00]} Nf6 {[%emt 0:00:00]} 2. Nf3 {[%emt 0:00:02]} b6 {[%emt 0:00:21]} 3. g3 {[%emt 0:00:24]} Bb7 {[%emt 0:00:08]} 4. Bg2 {[%emt 0:00:04]} c5 {[%emt 0:00:44]} 5. O-O {[%emt 0:00:16]} g6 {[%emt 0:00:18]} 6. d4 {[%emt 0:01:30]} cxd4 {[%emt 0:00:07]} 7. Qxd4 {[%emt 0:00:05]} Bg7 {[%emt 0:00:43]} 8. Nc3 {[%emt 0:00:20]} d6 {[%emt 0:00:21]} 9. Rd1 {[%emt 0:00:52]} Nbd7 {[%emt 0:00:10]} 10. Be3 {[%emt 0:01:01]} Rc8 {[%emt 0:00:51]} 11. Rac1 {[%emt 0:00:54]} O-O {[%emt 0:01:48]} 12. Qh4 {[%emt 0:01:21]} Re8 {[%emt 0:00:51]} 13. Bh3 {[%emt 0:01:29]} Bxf3 {[%emt 0:00:55]} 14. exf3 {[%emt 0:08:43]} Ne5 {[%emt 0:00:13]} 15. Bg2 {[%emt 0:00:20]} Nxc4 {[%emt 0:08:26]} 16. b3 {[%emt 0:00:28]} Nxe3 {[%emt 0:04:08]} 17. fxe3 {[%emt 0:00:04]} Qd7 {[%emt 0:28:56]} 18. Qa4 {[%emt 0:24:32]} Rc5 {[%emt 0:07:29]} 19. Qxd7 {[%emt 0:06:48]} Nxd7 {[%emt 0:00:04]} 20. Ne4 {[%emt 0:00:08]} Rcc8 {[%emt 0:09:00]} 21. Bf1 {[%emt 0:09:10]} Red8 {[%emt 0:05:58]} 22. b4 {[%emt 0:04:21]} Bb2 {[%emt 0:05:35]} 23. Rb1 {[%emt 0:00:26]} Bg7 {[%emt 0:00:35]} 24. Rbc1 {[%emt 0:00:16]} Nb8 {[%emt 0:07:17]} 25. f4 {[%emt 0:02:42]} Bb2 {[%emt 0:00:30]} 26. Rb1 {[%emt 0:00:14]} Bg7 {[%emt 0:00:05]} 27. Rbc1 {[%emt 0:00:04]} Bf8 {[%emt 0:02:37]} 28. Nc3 {[%emt 0:04:46]} e6 {[%emt 0:01:45]} 29. Nb5 {[%emt 0:01:16]} Nc6 {[%emt 0:01:30]} 30. a3 {[%emt 0:02:01]} a6 {[%emt 0:01:19]} 31. Nd4 {[%emt 0:09:59]} Nb8 {[%emt 0:02:03]} 32. Bh3 {[%emt 0:05:32]} Kh8 {[%emt 0:00:16]} 33. e4 {[%emt 0:01:48]} Bg7 {[%emt 0:05:35]} 34. Nf3 {[%emt 0:02:15]} Rc6 {[%emt 0:00:15]} 35. Rxc6 {[%emt 0:05:40]} Nxc6 {[%emt 0:00:00]} 36. Rc1 {[%emt 0:00:07]} Nd4 {[%emt 0:01:29]} 37. Kf2 {[%emt 0:00:33]} Nxf3 {[%emt 0:02:02]} 38. Kxf3 {[%emt 0:00:04]} Bb2 {[%emt 0:00:13]} 39. Rc6 {[%emt 0:05:30]} Rb8 {[%emt 0:00:17]} 40. a4 {[%emt 0:00:51]} Ba3 {[%emt 0:01:07]} 41. Bf1 {[%emt 0:05:25]} a5 {[%emt 0:08:15]} 42. bxa5 {[%emt 0:05:40]} bxa5 {[%emt 0:00:10]} 43. Bb5 {[%emt 0:00:03]} Rb7 {[%emt 0:05:42]} 44. g4 {[%emt 0:01:44]} Kg7 {[%emt 0:00:18]} 45. Rc8 {[%emt 0:00:38]} Bc5 {[%emt 0:02:40]} 46. h3 {[%emt 0:01:26]} Bb4 {[%emt 0:02:04]} 47. Ke2 {[%emt 0:01:52]} Re7 {[%emt 0:00:43]} 48. Kf3 {[%emt 0:00:21]} Bc5 {[%emt 0:01:15]} 49. Rc6 {[%emt 0:00:34]} Bb4 {[%emt 0:01:30]} 50. Rc8 {[%emt 0:00:06]} h6 {[%emt 0:01:42]} 51. h4 {[%emt 0:03:28]} Be1 {[%emt 0:00:35]} 52. h5 {[%emt 0:01:18]} gxh5 {[%emt 0:00:56]} 53. gxh5 {[%emt 0:00:04]} Bb4 {[%emt 0:00:03]} 54. Kg4 {[%emt 0:01:45]} Kf6 {[%emt 0:01:39]} 55. Bc6 {[%emt 0:00:22]} Ra7 {[%emt 0:01:42]} 56. Bb5 {[%emt 0:00:35]} Ba3 {[%emt 0:02:00]} 57. Bc6 {[%emt 0:00:36]} Bb2 {[%emt 0:00:27]} 58. Bb5 {[%emt 0:00:25]} Kg7 {[%emt 0:01:21]} 59. Bc6 {[%emt 0:00:28]} Bf6 {[%emt 0:01:08]} 60. Kf3 {[%emt 0:00:28]} Bb2 {[%emt 0:01:18]} 61. Kg4 {[%emt 0:00:28]} Re7 {[%emt 0:00:39]} 62. Kf3 {[%emt 0:00:24]} Ba3 {[%emt 0:02:34]} 63. Kg4 {[%emt 0:00:20]} Bb4 {[%emt 0:00:34]} 64. Kf3 {[%emt 0:00:18]} f5 {[%emt 0:02:06]} 65. exf5 {[%emt 0:01:32]} exf5 {[%emt 0:00:01]} 66. Bd5 {[%emt 0:00:09]} Bc5 {[%emt 0:00:58]} 67. Rg8+ {[%emt 0:00:16]} Kh7 {[%emt 0:00:01]} 68. Rf8 {[%emt 0:00:14]} Re3+ {[%emt 0:00:14]} 69. Kg2 {[%emt 0:00:15]} Re2+ {[%emt 0:00:22]} 70. Kf3 {[%emt 0:00:20]} Re3+ {[%emt 0:00:16]} 71. Kg2 {[%emt 0:00:04]} Re2+ {[%emt 0:00:12]} 72. Kf3 {[%emt 0:00:08]} Re3+ {[%emt 0:00:42]} 1/2-1/2

[Event "Dutch Open-ch 2019"]
[Site "Dieren"]
[Date "2019.07.29"]
[Round "6.6"]
[White "Hausrath, Daniel"]
[Black "Maris, Ivo"]
[Result "1/2-1/2"]
[ECO "E60"]
[WhiteElo "2468"]
[BlackElo "2399"]
[Annotator "ChessBase"]
[PlyCount "61"]
[EventDate "2019.07.23"]
[EventType "swiss"]
[EventCountry "NED"]
[SourceTitle "playchess.com"]
[Source "ChessBase"]
[SourceQuality "1"]
[TimeControl "40/5400+30:1800+30"]

1. Nf3 {[%emt 0:00:00]} d6 {[%emt 0:00:00]} 2. d4 {[%emt 0:00:00]} g6 {[%emt 0:00:30]} 3. g3 {[%emt 0:03:21]} Bg7 {[%emt 0:00:48]} 4. Bg2 {[%emt 0:00:06]} Nf6 {[%emt 0:05:15]} 5. O-O {[%emt 0:01:52]} O-O {[%emt 0:01:43]} 6. b3 {[%emt 0:05:39]} a5 {[%emt 0:02:35]} 7. Bb2 {[%emt 0:00:44]} c6 {[%emt 0:03:42]} 8. c4 {[%emt 0:00:55]} Nbd7 {[%emt 0:00:33]} 9. Nc3 {[%emt 0:02:10]} e5 {[%emt 0:08:34]} 10. dxe5 {[%emt 0:11:06]} dxe5 {[%emt 0:00:29]} 11. Qc2 {[%emt 0:00:24]} Re8 {[%emt 0:07:03]} 12. Rad1 {[%emt 0:03:18]} Qc7 {[%emt 0:01:47]} 13. Ba3 {[%emt 0:11:37]} Bf8 {[%emt 0:04:28]} 14. Bxf8 {[%emt 0:00:35]} Nxf8 {[%emt 0:01:49]} 15. Na4 {[%emt 0:10:22]} e4 {[%emt 0:07:41]} 16. Nd4 {[%emt 0:02:25]} e3 {[%emt 0:01:28]} 17. f3 {[%emt 0:09:10]} h5 {[%emt 0:05:21]} 18. Qc3 {[%emt 0:01:40]} N8h7 {[%emt 0:03:12]} 19. Rd3 {[%emt 0:04:35]} h4 {[%emt 0:02:28]} 20. Rxe3 {[%emt 0:06:37]} Rxe3 {[%emt 0:02:41]} 21. Qxe3 {[%emt 0:00:02]} hxg3 {[%emt 0:00:18]} 22. hxg3 {[%emt 0:00:06]} Qxg3 {[%emt 0:00:12]} 23. Qf2 {[%emt 0:05:08]} Qe5 {[%emt 0:06:49]} 24. e3 {[%emt 0:06:13]} Bd7 {[%emt 0:01:52]} 25. Nb6 {[%emt 0:02:43]} Re8 {[%emt 0:01:07]} 26. Re1 {[%emt 0:00:08]} Qc5 {[%emt 0:11:19]} 27. Nxd7 {[%emt 0:01:39]} Nxd7 {[%emt 0:00:15]} 28. f4 {[%emt 0:00:10]} Ndf6 {[%emt 0:00:52]} 29. Bf3 {[%emt 0:02:08]} Ne4 {[%emt 0:01:10]} 30. Bxe4 {[%emt 0:04:58]} Rxe4 {[%emt 0:00:07]} 31. Kg2 {[%emt 0:00:05]} 1/2-1/2

[Event "Dutch Open-ch 2019"]
[Site "Dieren"]
[Date "2019.07.29"]
[Round "6.7"]
[White "Bosboom, Manuel"]
[Black "Lai, Hing Ting"]
[Result "1-0"]
[ECO "A30"]
[WhiteElo "2418"]
[BlackElo "2460"]
[Annotator "ChessBase"]
[PlyCount "103"]
[EventDate "2019.07.23"]
[EventType "swiss"]
[EventCountry "NED"]
[SourceTitle "playchess.com"]
[Source "ChessBase"]
[SourceQuality "1"]
[TimeControl "40/5400+30:1800+30"]

1. c4 {[%emt 0:00:00]} e6 {[%emt 0:00:00]} 2. Nf3 {[%emt 0:00:26]} c5 {[%emt 0:00:45]} 3. g3 {[%emt 0:01:36]} b6 {[%emt 0:01:22]} 4. Bg2 {[%emt 0:00:24]} Bb7 {[%emt 0:00:06]} 5. O-O {[%emt 0:00:40]} Nf6 {[%emt 0:00:09]} 6. Nc3 {[%emt 0:04:58]} Be7 {[%emt 0:00:39]} 7. Re1 {[%emt 0:09:32]} O-O {[%emt 0:03:03]} 8. e4 {[%emt 0:00:51]} d6 {[%emt 0:00:15]} 9. d4 {[%emt 0:00:33]} cxd4 {[%emt 0:00:12]} 10. Nxd4 {[%emt 0:00:04]} Qc7 {[%emt 0:00:45]} 11. Ndb5 {[%emt 0:15:04]} Qc6 {[%emt 0:01:44]} 12. Bf4 {[%emt 0:17:31]} Rd8 {[%emt 0:05:08]} 13. Rc1 {[%emt 0:02:41]} Bf8 {[%emt 0:11:08]} 14. Qe2 {[%emt 0:11:09]} a6 {[%emt 0:06:25]} 15. Nd4 {[%emt 0:02:28]} Qc8 {[%emt 0:01:16]} 16. Be3 {[%emt 0:05:32]} Nbd7 {[%emt 0:02:10]} 17. b4 {[%emt 0:02:16]} g6 {[%emt 0:04:27]} 18. h3 {[%emt 0:02:43]} Re8 {[%emt 0:03:36]} 19. Nb3 {[%emt 0:04:32]} Qc7 {[%emt 0:02:49]} 20. a4 {[%emt 0:02:26]} Rac8 {[%emt 0:02:53]} 21. a5 {[%emt 0:00:41]} bxa5 {[%emt 0:02:15]} 22. Nxa5 {[%emt 0:00:06]} Ba8 {[%emt 0:00:05]} 23. Bd4 {[%emt 0:04:59]} h5 {[%emt 0:07:13]} 24. Na4 {[%emt 0:02:15]} h4 {[%emt 0:07:42]} 25. g4 {[%emt 0:00:17]} Bh6 {[%emt 0:00:12]} 26. Be3 {[%emt 0:01:27]} Bxe3 {[%emt 0:01:27]} 27. Qxe3 {[%emt 0:00:02]} Rb8 {[%emt 0:01:11]} 28. Qd2 {[%emt 0:01:43]} Nf8 {[%emt 0:01:38]} 29. c5 {[%emt 0:03:18]} d5 {[%emt 0:00:41]} 30. e5 {[%emt 0:01:18]} Ne4 {[%emt 0:00:39]} 31. Bxe4 {[%emt 0:00:18]} dxe4 {[%emt 0:00:02]} 32. Qd6 {[%emt 0:00:25]} Qa7 {[%emt 0:02:01]} 33. c6 {[%emt 0:00:47]} Red8 {[%emt 0:04:31]} 34. Qc5 {[%emt 0:00:17]} Qc7 {[%emt 0:00:01]} 35. Rxe4 {[%emt 0:00:18]} Rd3 {[%emt 0:00:08]} 36. Re3 {[%emt 0:00:57]} Rd5 {[%emt 0:05:26]} 37. Qc3 {[%emt 0:00:04]} Rbb5 {[%emt 0:00:13]} 38. Nb2 {[%emt 0:01:57]} Rxe5 {[%emt 0:02:13]} 39. Rxe5 {[%emt 0:00:26]} Rxe5 {[%emt 0:00:02]} 40. Nbc4 {[%emt 0:01:10]} Rd5 {[%emt 0:06:58]} 41. Ne3 {[%emt 0:31:29]} Rb5 {[%emt 0:33:21]} 42. Rd1 {[%emt 0:00:00]} Rb8 {[%emt 0:00:00]} 43. Nec4 {[%emt 0:00:00]} Rc8 {[%emt 0:00:00]} 44. Rd6 {[%emt 0:00:00]} Qb8 {[%emt 0:00:00]} 45. Rd2 {[%emt 0:00:00]} Nh7 {[%emt 0:00:00]} 46. Nd6 {[%emt 0:00:00]} Rc7 {[%emt 0:00:00]} 47. Qc5 {[%emt 0:00:00]} Nf6 {[%emt 0:00:00]} 48. Qe5 {[%emt 0:02:07]} Bxc6 {[%emt 0:02:50]} 49. Qxf6 {[%emt 0:00:22]} Bd5 {[%emt 0:00:08]} 50. Rd1 {[%emt 0:01:10]} Rd7 {[%emt 0:04:01]} 51. Ne4 {[%emt 0:00:01]} Qxb4 {[%emt 0:00:24]} 52. Rc1 {[%emt 0:00:01]} 1-0

[Event "Dutch Open-ch 2019"]
[Site "Dieren"]
[Date "2019.07.29"]
[Round "6.8"]
[White "Sharma, Dinesh K."]
[Black "Vrolijk, Liam"]
[Result "1/2-1/2"]
[ECO "C78"]
[WhiteElo "2299"]
[BlackElo "2478"]
[Annotator "ChessBase"]
[PlyCount "89"]
[EventDate "2019.07.23"]
[EventType "swiss"]
[EventCountry "NED"]
[SourceTitle "playchess.com"]
[Source "ChessBase"]
[SourceQuality "1"]
[TimeControl "40/5400+30:1800+30"]

1. e4 {[%emt 0:00:00]} e5 {[%emt 0:04:21]} 2. Nf3 {[%emt 0:00:13]} Nc6 {[%emt 0:00:08]} 3. Bb5 {[%emt 0:00:04]} a6 {[%emt 0:00:29]} 4. Ba4 {[%emt 0:00:05]} Nf6 {[%emt 0:00:07]} 5. O-O {[%emt 0:00:22]} b5 {[%emt 0:00:31]} 6. Bb3 {[%emt 0:00:06]} Bc5 {[%emt 0:00:06]} 7. d3 {[%emt 0:02:06]} d6 {[%emt 0:02:16]} 8. a4 {[%emt 0:00:16]} Rb8 {[%emt 0:02:03]} 9. axb5 {[%emt 0:03:07]} axb5 {[%emt 0:00:07]} 10. c3 {[%emt 0:00:07]} h6 {[%emt 0:05:01]} 11. d4 {[%emt 0:04:46]} Bb6 {[%emt 0:00:38]} 12. dxe5 {[%emt 0:06:41]} Nxe5 {[%emt 0:02:11]} 13. Nxe5 {[%emt 0:04:31]} dxe5 {[%emt 0:00:27]} 14. Qxd8+ {[%emt 0:01:51]} Kxd8 {[%emt 0:00:09]} 15. Nd2 {[%emt 0:00:30]} Ke7 {[%emt 0:03:13]} 16. h3 {[%emt 0:06:52]} Be6 {[%emt 0:01:40]} 17. Bc2 {[%emt 0:01:51]} Nd7 {[%emt 0:02:14]} 18. Re1 {[%emt 0:01:25]} Rhd8 {[%emt 0:02:57]} 19. Nb3 {[%emt 0:04:43]} c5 {[%emt 0:03:12]} 20. Be3 {[%emt 0:05:34]} c4 {[%emt 0:04:51]} 21. Bxb6 {[%emt 0:07:16]} Rxb6 {[%emt 0:00:55]} 22. Nd2 {[%emt 0:00:53]} Nc5 {[%emt 0:04:17]} 23. Nf3 {[%emt 0:03:01]} Kf6 {[%emt 0:00:28]} 24. Red1 {[%emt 0:01:15]} Rxd1+ {[%emt 0:07:57]} 25. Rxd1 {[%emt 0:00:38]} b4 {[%emt 0:00:20]} 26. cxb4 {[%emt 0:01:34]} Rxb4 {[%emt 0:00:32]} 27. Rb1 {[%emt 0:00:04]} Bd7 {[%emt 0:01:35]} 28. Nd2 {[%emt 0:10:21]} Ne6 {[%emt 0:11:37]} 29. Bd1 {[%emt 0:05:56]} Nd4 {[%emt 0:01:45]} 30. Kf1 {[%emt 0:01:24]} Ke7 {[%emt 0:01:41]} 31. Ke1 {[%emt 0:00:55]} f6 {[%emt 0:02:28]} 32. Rc1 {[%emt 0:07:16]} Be6 {[%emt 0:00:58]} 33. h4 {[%emt 0:00:40]} g5 {[%emt 0:01:48]} 34. hxg5 {[%emt 0:00:47]} hxg5 {[%emt 0:00:20]} 35. Rc3 {[%emt 0:02:10]} Kd6 {[%emt 0:00:26]} 36. Rc1 {[%emt 0:00:19]} Bf7 {[%emt 0:00:52]} 37. Rc3 {[%emt 0:00:37]} Kc5 {[%emt 0:01:55]} 38. b3 {[%emt 0:10:09]} Nb5 {[%emt 0:00:23]} 39. Rc1 {[%emt 0:00:23]} c3 {[%emt 0:08:23]} 40. Be2 {[%emt 0:01:34]} Kb6 {[%emt 0:01:01]} 41. Nb1 {[%emt 0:35:00]} Nd4 {[%emt 0:30:21]} 42. Nxc3 {[%emt 0:02:11]} Bxb3 {[%emt 0:24:17]} 43. Bd1 {[%emt 0:00:00]} Bc4 {[%emt 0:00:00]} 44. Na4+ {[%emt 0:00:00]} Kb5 {[%emt 0:00:00]} 45. Nc3+ {[%emt 0:00:00]} 1/2-1/2

[Event "Dutch Open-ch 2019"]
[Site "Dieren"]
[Date "2019.07.29"]
[Round "6.9"]
[White "Lahaye, Rick"]
[Black "Wedda, Dries"]
[Result "1-0"]
[ECO "A00"]
[WhiteElo "2421"]
[BlackElo "2234"]
[Annotator "NA"]
[PlyCount "93"]
[EventDate "2019.07.23"]
[EventType "swiss"]
[EventCountry "NED"]
[SourceTitle "playchess.com"]
[Source "ChessBase"]
[SourceQuality "1"]
[TimeControl "40/5400+30:1800+30"]

1. d3 {[%emt 0:00:00]} c5 {[%emt 0:01:08]} 2. f4 {[%emt 0:00:38]} g6 {[%emt 0:03:54]} 3. c4 {[%emt 0:03:55]} Bg7 {[%emt 0:00:47]} 4. g3 {[%emt 0:00:05]} Nc6 {[%emt 0:12:02]} 5. Bg2 {[%emt 0:03:08]} d6 {[%emt 0:12:10]} 6. Nh3 {[%emt 0:02:05]} h5 {[%emt 0:05:20]} 7. Nf2 {[%emt 0:02:33]} Nh6 {[%emt 0:01:49]} 8. Nd2 $17 {[%emt 0:05:28]} h4 {[%emt 0:20:48]} 9. e4 {[%emt 0:13:08]} Bd4 {[%emt 0:02:59]} 10. Nf3 {[%emt 0:02:05]} Bxf2+ {[%emt 0:01:03]} 11. Kxf2 {[%emt 0:00:04]} Ng4+ {[%emt 0:00:41]} 12. Ke2 {[%emt 0:00:25]} h3 {[%emt 0:04:57]} 13. Bf1 {[%emt 0:00:15]} Nd4+ {[%emt 0:02:38]} 14. Nxd4 {[%emt 0:00:09]} cxd4 {[%emt 0:00:02]} 15. Ke1 {[%emt 0:00:26]} Bd7 {[%emt 0:06:48]} 16. Be2 {[%emt 0:01:09]} Qc8 {[%emt 0:00:17]} 17. b3 {[%emt 0:03:29]} a5 {[%emt 0:01:40]} 18. Bd2 {[%emt 0:05:42]} Nh6 {[%emt 0:05:51]} 19. Qc1 {[%emt 0:04:23]} Bg4 {[%emt 0:02:39]} 20. Qb2 {[%emt 0:00:03]} Qc5 {[%emt 0:03:08]} 21. b4 {[%emt 0:17:38]} axb4 {[%emt 0:00:10]} 22. Bxb4 {[%emt 0:00:04]} Qb6 {[%emt 0:00:43]} 23. a4 {[%emt 0:00:12]} e5 {[%emt 0:01:06]} 24. a5 {[%emt 0:03:50]} Qc6 {[%emt 0:00:32]} 25. fxe5 {[%emt 0:16:12]} dxe5 {[%emt 0:00:10]} 26. Bd2 {[%emt 0:00:07]} Bxe2 {[%emt 0:01:12]} 27. Kxe2 {[%emt 0:00:05]} Ng4 {[%emt 0:01:44]} 28. Rab1 {[%emt 0:00:42]} Rb8 {[%emt 0:02:35]} 29. Qa3 {[%emt 0:00:20]} Ra8 {[%emt 0:02:37]} 30. Rb5 {[%emt 0:03:31]} Qf6 {[%emt 0:01:06]} 31. Rf1 {[%emt 0:00:15]} Qe6 {[%emt 0:00:40]} 32. Rxb7 {[%emt 0:01:54]} Nxh2 {[%emt 0:00:28]} 33. Qa4+ {[%emt 0:00:21]} Kf8 {[%emt 0:00:53]} 34. Rfxf7+ {[%emt 0:03:30]} Qxf7 {[%emt 0:00:48]} 35. Bb4+ {[%emt 0:00:06]} Kg8 {[%emt 0:00:07]} 36. Rxf7 {[%emt 0:00:05]} Kxf7 {[%emt 0:00:15]} 37. Qd7+ {[%emt 0:00:06]} Kg8 {[%emt 0:00:06]} 38. Qe6+ {[%emt 0:00:09]} Kg7 {[%emt 0:01:15]} 39. Qxe5+ {[%emt 0:00:24]} Kg8 {[%emt 0:00:57]} 40. Qd5+ {[%emt 0:04:03]} Kg7 {[%emt 0:00:22]} 41. Qxd4+ {[%emt 0:30:10]} Kh6 {[%emt 0:11:48]} 42. Bd2+ {[%emt 0:00:00]} g5 {[%emt 0:00:20]} 43. Qf6+ {[%emt 0:00:00]} Kh7 {[%emt 0:00:09]} 44. Qf5+ {[%emt 0:00:00]} Kg7 {[%emt 0:00:37]} 45. Bc3+ {[%emt 0:00:00]} Kh6 {[%emt 0:00:26]} 46. Qxh3+ {[%emt 0:00:00]} Kg6 {[%emt 0:00:08]} 47. Bxh8 {[%emt 0:00:00]} 1-0